{"text_format":"1","workbook":"xlsx","n_sheets":4,"sheets":["Rhythmustabelle","Bereiche & Aufgaben","Kummulierte DT-Tabelle","Tabelle3"],"not_rendered":{"charts":0,"images":0,"macros":1,"external_links":0,"defined_names":0,"comments":1,"pivot_tables":0},"unopened":[],"bounds":{"document_bytes":16777216,"sheet_cells":100000,"rows_first":2000,"rows_last":500,"rows_between":2000,"halvings":0,"cell_chars":16384,"cell_head_chars":4096},"cells_cut":0,"cells_raw":0,"read":"whole","date_system":"1900"}

{"sheet":"Rhythmustabelle","index":0,"n_rows":85,"n_cols":36,"rows_kept":85,"cut":false,"hidden":false,"merged":[[37,35,40,35],[45,35,50,35],[1,20,1,22],[1,24,1,26],[2,24,2,25],[1,32,1,33],[23,24,23,25],[23,28,23,29],[37,20,37,21],[37,24,37,25],[30,20,30,21],[2,35,3,35],[2,4,2,5],[2,8,2,9],[2,12,2,13],[2,16,2,17],[2,20,2,21],[52,0,52,3],[1,12,1,14],[2,28,2,29],[9,4,9,5],[9,8,9,9],[9,12,9,13],[9,16,9,17],[9,20,9,21],[9,24,9,25],[9,28,9,29],[1,28,1,30],[16,24,16,25],[16,28,16,29],[30,24,30,25],[30,28,30,29],[37,4,37,5],[16,4,16,5],[16,8,16,9],[16,12,16,13],[16,16,16,17],[16,20,16,21],[0,0,0,35],[2,0,2,2],[9,0,9,2],[16,0,16,2],[44,24,44,25],[44,28,44,29],[44,4,44,5],[44,8,44,9],[44,12,44,13],[44,16,44,17],[44,20,44,21],[37,28,37,29],[1,4,1,6],[1,8,1,10],[1,16,1,18],[37,8,37,9],[23,0,23,2],[30,0,30,2],[37,0,37,2],[44,0,44,2],[37,12,37,13],[23,4,23,5],[23,8,23,9],[23,12,23,13],[23,16,23,17],[23,20,23,21],[37,16,37,17],[30,4,30,5],[30,8,30,9],[30,12,30,13],[30,16,30,17]]}
["Wöchtentliche Rhythmustabelle (Darren Hardy)"]
["Bereiche & Aufgaben","MM","PRIO",null,"Montag",null,null,null,"Dienstag",null,null,null,"Mittwoch",null,null,null,"Donnerstag",null,null,null,"Freitag",null,null,null,"Samstag",null,null,null,"Sonntag",null,null,null,"Wochenwerte"]
[{"$f":"'Bereiche & Aufgaben'!C3","v":"Mission"},null,null,null,"Soll",null,"Ist",null,"Soll",null,"Ist",null,"Soll",null,"Ist",null,"Soll",null,"Ist",null,"Soll",null,"Ist",null,"Soll",null,"Ist",null,"Soll",null,"Ist",null,{"$f":"SUM(AG4:AG9)","v":10},{"$f":"SUM(AH4:AH9)","v":0},null,"2025-03-24"]
[{"$f":"IF('Bereiche & Aufgaben'!C4=\"\",\"\",'Bereiche & Aufgaben'!C4)","v":"Strategie"},"M",null,null,null,null,null,null,null,null,null,null,null,null,null,null,null,null,null,null,null,null,null,null,null,null,null,null,null,null,null,null,{"$f":"F4+J4+N4+R4+V4+Z4+AD4","v":0},0]
[{"$f":"IF('Bereiche & Aufgaben'!C5=\"\",\"\",'Bereiche & Aufgaben'!C5)","v":"Prozessarbeit"},null,null,null,null,null,null,null,null,null,null,null,null,null,null,null,null,null,null,null,null,null,null,null,null,null,null,null,null,null,null,null,0,0,null,"Achtung:"]
[{"$f":"IF('Bereiche & Aufgaben'!C6=\"\",\"\",'Bereiche & Aufgaben'!C6)","v":"Analyse"},null,null,null,null,null,null,null,null,null,null,null,null,null,null,null,null,null,null,null,null,null,null,null,null,10,null,null,null,null,null,null,10,0,null,"ERST sichern, "]
[{"$f":"IF('Bereiche & Aufgaben'!C7=\"\",\"\",'Bereiche & Aufgaben'!C7)","v":"Tradingwissen"},null,null,null,null,null,null,null,null,null,null,null,null,null,null,null,null,null,null,null,null,null,null,null,null,null,null,null,null,null,null,null,0,0,null,"DANN neues Wochen-DT"]
[{"$f":"IF('Bereiche & Aufgaben'!C8=\"\",\"\",'Bereiche & Aufgaben'!C8)","v":""},null,null,null,null,null,null,null,null,null,null,null,null,null,null,null,null,null,null,null,null,null,null,null,null,null,null,null,null,null,null,null,0,0]
[{"$f":"IF('Bereiche & Aufgaben'!C9=\"\",\"\",'Bereiche & Aufgaben'!C9)","v":""},null,null,null,null,null,null,null,null,null,null,null,null,null,null,null,null,null,null,null,null,null,null,null,null,null,null,null,null,null,null,null,0,0]
[{"$f":"'Bereiche & Aufgaben'!D3","v":"Mann-Sein"},null,null,null,"Soll",null,"Ist",null,"Soll",null,"Ist",null,"Soll",null,"Ist",null,"Soll",null,"Ist",null,"Soll",null,"Ist",null,"Soll",null,"Ist",null,"Soll",null,"Ist",null,{"$f":"SUM(AG11:AG16)","v":0},{"$f":"SUM(AH11:AH16)","v":0}]
[{"$f":"IF('Bereiche & Aufgaben'!D4=\"\",\"\",'Bereiche & Aufgaben'!D4)","v":"Männer-Buch"},null,null,null,null,null,null,null,null,null,null,null,null,null,null,null,null,null,null,null,null,null,null,null,null,null,null,null,null,null,null,null,{"$f":"F11+J11+N11+R11+V11+Z11+AD11","v":0},0]
[{"$f":"IF('Bereiche & Aufgaben'!D5=\"\",\"\",'Bereiche & Aufgaben'!D5)","v":"Men-Encounter"},null,null,null,null,null,null,null,null,null,null,null,null,null,null,null,null,null,null,null,null,null,null,null,null,null,null,null,null,null,null,null,0,0]
[{"$f":"IF('Bereiche & Aufgaben'!D6=\"\",\"\",'Bereiche & Aufgaben'!D6)","v":"Meditation"},null,null,null,null,null,null,null,null,null,null,null,null,null,null,null,null,null,null,null,null,null,null,null,null,null,null,null,null,null,null,null,0,0]
[{"$f":"IF('Bereiche & Aufgaben'!D7=\"\",\"\",'Bereiche & Aufgaben'!D7)","v":"Platzhalter"},null,null,null,null,null,null,null,null,null,null,null,null,null,null,null,null,null,null,null,null,null,null,null,null,null,null,null,null,null,null,null,0,0]
[{"$f":"IF('Bereiche & Aufgaben'!D8=\"\",\"\",'Bereiche & Aufgaben'!D8)","v":""},null,null,null,null,null,null,null,null,null,null,null,null,null,null,null,null,null,null,null,null,null,null,null,null,null,null,null,null,null,null,null,0,0,null,"Daten sichern & übertragen"]
[{"$f":"IF('Bereiche & Aufgaben'!D9=\"\",\"\",'Bereiche & Aufgaben'!D9)","v":""},null,null,null,null,null,null,null,null,null,null,null,null,null,null,null,null,null,null,null,null,null,null,null,null,null,null,null,null,null,null,null,0,0]
[{"$f":"'Bereiche & Aufgaben'!E3","v":"Gesundheit"},null,null,null,"Soll",null,"Ist",null,"Soll",null,"Ist",null,"Soll",null,"Ist",null,"Soll",null,"Ist",null,"Soll",null,"Ist",null,"Soll",null,"Ist",null,"Soll",null,"Ist",null,{"$f":"SUM(AG18:AG23)","v":0},{"$f":"SUM(AH18:AH23)","v":0}]
[{"$f":"IF('Bereiche & Aufgaben'!E4=\"\",\"\",'Bereiche & Aufgaben'!E4)","v":"Krafttraining"},null,null,null,null,null,null,null,null,null,null,null,null,null,null,null,null,null,null,null,null,null,null,null,null,null,null,null,null,null,null,null,{"$f":"F18+J18+N18+R18+V18+Z18+AD18","v":0},0]
[{"$f":"IF('Bereiche & Aufgaben'!E5=\"\",\"\",'Bereiche & Aufgaben'!E5)","v":"Ausdauertraining"},null,null,null,null,null,null,null,null,null,null,null,null,null,null,null,null,null,null,null,null,null,null,null,null,null,null,null,null,null,null,null,0,0]
[{"$f":"IF('Bereiche & Aufgaben'!E6=\"\",\"\",'Bereiche & Aufgaben'!E6)","v":"Faszientraining"},null,null,null,null,null,null,null,null,null,null,null,null,null,null,null,null,null,null,null,null,null,null,null,null,null,null,null,null,null,null,null,0,0]
[{"$f":"IF('Bereiche & Aufgaben'!E7=\"\",\"\",'Bereiche & Aufgaben'!E7)","v":"Goldeman"},null,null,null,null,null,null,null,null,null,null,null,null,null,null,null,null,null,null,null,null,null,null,null,null,null,null,null,null,null,null,null,0,0]
[{"$f":"IF('Bereiche & Aufgaben'!E8=\"\",\"\",'Bereiche & Aufgaben'!E8)","v":""},null,null,null,null,null,null,null,null,null,null,null,null,null,null,null,null,null,null,null,null,null,null,null,null,null,null,null,null,null,null,null,0,0]
[{"$f":"IF('Bereiche & Aufgaben'!E9=\"\",\"\",'Bereiche & Aufgaben'!E9)","v":""},null,null,null,null,null,null,null,null,null,null,null,null,null,null,null,null,null,null,null,null,null,null,null,null,null,null,null,null,null,null,null,0,0]
[{"$f":"'Bereiche & Aufgaben'!F3","v":"Soziales"},null,null,null,"Soll",null,"Ist",null,"Soll",null,"Ist",null,"Soll",null,"Ist",null,"Soll",null,"Ist",null,"Soll",null,"Ist",null,"Soll",null,"Ist",null,"Soll",null,"Ist",null,{"$f":"SUM(AG25:AG30)","v":0},{"$f":"SUM(AH25:AH30)","v":0}]
[{"$f":"IF('Bereiche & Aufgaben'!F4=\"\",\"\",'Bereiche & Aufgaben'!F4)","v":"Freund anrufen"},null,null,null,null,null,null,null,null,null,null,null,null,null,null,null,null,null,null,null,null,null,null,null,null,null,null,null,null,null,null,null,{"$f":"F25+J25+N25+R25+V25+Z25+AD25","v":0},0]
[{"$f":"IF('Bereiche & Aufgaben'!F5=\"\",\"\",'Bereiche & Aufgaben'!F5)","v":"Xhemile"},null,null,null,null,null,null,null,null,null,null,null,null,null,null,null,null,null,null,null,null,null,null,null,null,null,null,null,null,null,null,null,0,0]
[{"$f":"IF('Bereiche & Aufgaben'!F6=\"\",\"\",'Bereiche & Aufgaben'!F6)","v":"Kinder"},null,null,null,null,null,null,null,null,null,null,null,null,null,null,null,null,null,null,null,null,null,null,null,null,null,null,null,null,null,null,null,0,0]
[{"$f":"IF('Bereiche & Aufgaben'!F7=\"\",\"\",'Bereiche & Aufgaben'!F7)","v":""},null,null,null,null,null,null,null,null,null,null,null,null,null,null,null,null,null,null,null,null,null,null,null,null,null,null,null,null,null,null,null,0,0]
[{"$f":"IF('Bereiche & Aufgaben'!F8=\"\",\"\",'Bereiche & Aufgaben'!F8)","v":""},null,null,null,null,null,null,null,null,null,null,null,null,null,null,null,null,null,null,null,null,null,null,null,null,null,null,null,null,null,null,null,0,0]
[{"$f":"IF('Bereiche & Aufgaben'!F9=\"\",\"\",'Bereiche & Aufgaben'!F9)","v":""},null,null,null,null,null,null,null,null,null,null,null,null,null,null,null,null,null,null,null,null,null,null,null,null,null,null,null,null,null,null,null,0,0]
[{"$f":"'Bereiche & Aufgaben'!G3","v":"Fähigkeiten"},null,null,null,"Soll",null,"Ist",null,"Soll",null,"Ist",null,"Soll",null,"Ist",null,"Soll",null,"Ist",null,"Soll",null,"Ist",null,"Soll",null,"Ist",null,"Soll",null,"Ist",null,{"$f":"SUM(AG32:AG37)","v":0},{"$f":"SUM(AH32:AH37)","v":0}]
[{"$f":"IF('Bereiche & Aufgaben'!G4=\"\",\"\",'Bereiche & Aufgaben'!G4)","v":"Speed-Reading"},null,null,null,null,null,null,null,null,null,null,null,null,null,null,null,null,null,null,null,null,null,null,null,null,null,null,null,null,null,null,null,{"$f":"F32+J32+N32+R32+V32+Z32+AD32","v":0},0]
[{"$f":"IF('Bereiche & Aufgaben'!G5=\"\",\"\",'Bereiche & Aufgaben'!G5)","v":"Gefühle trainieren"},null,null,null,null,null,null,null,null,null,null,null,null,null,null,null,null,null,null,null,null,null,null,null,null,null,null,null,null,null,null,null,0,0]
[{"$f":"IF('Bereiche & Aufgaben'!G6=\"\",\"\",'Bereiche & Aufgaben'!G6)","v":"Genie-Master-Kurs"},null,null,null,null,null,null,null,null,null,null,null,null,null,null,null,null,null,null,null,null,null,null,null,null,null,null,null,null,null,null,null,0,0]
[{"$f":"IF('Bereiche & Aufgaben'!G7=\"\",\"\",'Bereiche & Aufgaben'!G7)","v":""},null,null,null,null,null,null,null,null,null,null,null,null,null,null,null,null,null,null,null,null,null,null,null,null,null,null,null,null,null,null,null,0,0]
[{"$f":"IF('Bereiche & Aufgaben'!G8=\"\",\"\",'Bereiche & Aufgaben'!G8)","v":""},null,null,null,null,null,null,null,null,null,null,null,null,null,null,null,null,null,null,null,null,null,null,null,null,null,null,null,null,null,null,null,0,0]
[{"$f":"IF('Bereiche & Aufgaben'!G9=\"\",\"\",'Bereiche & Aufgaben'!G9)","v":""},null,null,null,null,null,null,null,null,null,null,null,null,null,null,null,null,null,null,null,null,null,null,null,null,null,null,null,null,null,null,null,0,0]
[{"$f":"'Bereiche & Aufgaben'!H3","v":"Spirituelles"},null,null,null,"Soll",null,"Ist",null,"Soll",null,"Ist",null,"Soll",null,"Ist",null,"Soll",null,"Ist",null,"Soll",null,"Ist",null,"Soll",null,"Ist",null,"Soll",null,"Ist",null,{"$f":"SUM(AG39:AG44)","v":0},{"$f":"SUM(AH39:AH44)","v":0},null,"SEI der MANN \nDEINES LEBENS!"]
[{"$f":"IF('Bereiche & Aufgaben'!H4=\"\",\"\",'Bereiche & Aufgaben'!H4)","v":"Meditation"},null,null,null,null,null,null,null,null,null,null,null,null,null,null,null,null,null,null,null,null,null,null,null,null,null,null,null,null,null,null,null,{"$f":"F39+J39+N39+R39+V39+Z39+AD39","v":0},0]
[{"$f":"IF('Bereiche & Aufgaben'!H5=\"\",\"\",'Bereiche & Aufgaben'!H5)","v":"Buch lesen"},null,null,null,null,null,null,null,null,null,null,null,null,null,null,null,null,null,null,null,null,null,null,null,null,null,null,null,null,null,null,null,0,0]
[{"$f":"IF('Bereiche & Aufgaben'!H6=\"\",\"\",'Bereiche & Aufgaben'!H6)","v":"Binaurale Beats"},null,null,null,null,null,null,null,null,null,null,null,null,null,null,null,null,null,null,null,null,null,null,null,null,null,null,null,null,null,null,null,0,0]
[{"$f":"IF('Bereiche & Aufgaben'!H7=\"\",\"\",'Bereiche & Aufgaben'!H7)","v":""},null,null,null,null,null,null,null,null,null,null,null,null,null,null,null,null,null,null,null,null,null,null,null,null,null,null,null,null,null,null,null,0,0]
[{"$f":"IF('Bereiche & Aufgaben'!H8=\"\",\"\",'Bereiche & Aufgaben'!H8)","v":""},null,null,null,null,null,null,null,null,null,null,null,null,null,null,null,null,null,null,null,null,null,null,null,null,null,null,null,null,null,null,null,0,0]
[{"$f":"IF('Bereiche & Aufgaben'!H9=\"\",\"\",'Bereiche & Aufgaben'!H9)","v":""},null,null,null,null,null,null,null,null,null,null,null,null,null,null,null,null,null,null,null,null,null,null,null,null,null,null,null,null,null,null,null,0,0]
[{"$f":"'Bereiche & Aufgaben'!I3","v":"Ordnung / Ablage / ToDo"},null,null,null,"Soll",null,"Ist",null,"Soll",null,"Ist",null,"Soll",null,"Ist",null,"Soll",null,"Ist",null,"Soll",null,"Ist",null,"Soll",null,"Ist",null,"Soll",null,"Ist",null,{"$f":"SUM(AG46:AG51)","v":0},{"$f":"SUM(AH46:AH51)","v":0}]
[{"$f":"IF('Bereiche & Aufgaben'!I4=\"\",\"\",'Bereiche & Aufgaben'!I4)","v":"Einkaufen"},null,null,null,null,null,null,null,null,null,null,null,null,null,null,null,null,null,null,null,null,null,null,null,null,null,null,null,null,null,null,null,{"$f":"F46+J46+N46+R46+V46+Z46+AD46","v":0},0,null,"Viel Erfolg \nbei der Umsetzung!"]
[{"$f":"IF('Bereiche & Aufgaben'!I5=\"\",\"\",'Bereiche & Aufgaben'!I5)","v":"Ordnung & Ablage"},null,null,null,null,null,null,null,null,null,null,null,null,null,null,null,null,null,null,null,null,null,null,null,null,null,null,null,null,null,null,null,0,0]
[{"$f":"IF('Bereiche & Aufgaben'!I6=\"\",\"\",'Bereiche & Aufgaben'!I6)","v":"Einkommensteuer"},null,null,null,null,null,null,null,null,null,null,null,null,null,null,null,null,null,null,null,null,null,null,null,null,null,null,null,null,null,null,null,0,0]
[{"$f":"IF('Bereiche & Aufgaben'!I7=\"\",\"\",'Bereiche & Aufgaben'!I7)","v":"Test"},null,null,null,null,null,null,null,null,null,null,null,null,null,null,null,null,null,null,null,null,null,null,null,null,null,null,null,null,null,null,null,0,0]
[{"$f":"IF('Bereiche & Aufgaben'!I8=\"\",\"\",'Bereiche & Aufgaben'!I8)","v":""},null,null,null,null,null,null,null,null,null,null,null,null,null,null,null,null,null,null,null,null,null,null,null,null,null,null,null,null,null,null,null,0,0]
[{"$f":"IF('Bereiche & Aufgaben'!I9=\"\",\"\",'Bereiche & Aufgaben'!I9)","v":""},null,null,null,null,null,null,null,null,null,null,null,null,null,null,null,null,null,null,null,null,null,null,null,null,null,null,null,null,null,null,null,0,0]
[]
["Tages- / Wochenwerte",null,null,null,"Mo",{"$f":"SUM(F4:F9,F11:F16,F18:F23,F25:F30,F32:F36,F37,F39:F44,F46:F51)","v":0},{"$f":"SUM(G4:G9,G11:G16,G18:G23,G25:G30,G32:G36,G37,G39:G44,G46:G51)","v":0},null,"Di",{"$f":"SUM(J4:J9,J11:J16,J18:J23,J25:J30,J32:J36,J37,J39:J44,J46:J51)","v":0},{"$f":"SUM(K4:K9,K11:K16,K18:K23,K25:K30,K32:K36,K37,K39:K44,K46:K51)","v":0},null,"Mi",{"$f":"SUM(N4:N9,N11:N16,N18:N23,N25:N30,N32:N36,N37,N39:N44,N46:N51)","v":0},{"$f":"SUM(O4:O9,O11:O16,O18:O23,O25:O30,O32:O36,O37,O39:O44,O46:O51)","v":0},null,"Do",{"$f":"SUM(R4:R9,R11:R16,R18:R23,R25:R30,R32:R36,R37,R39:R44,R46:R51)","v":0},{"$f":"SUM(S4:S9,S11:S16,S18:S23,S25:S30,S32:S36,S37,S39:S44,S46:S51)","v":0},null,"Fr",{"$f":"SUM(V4:V9,V11:V16,V18:V23,V25:V30,V32:V36,V37,V39:V44,V46:V51)","v":0},{"$f":"SUM(W4:W9,W11:W16,W18:W23,W25:W30,W32:W36,W37,W39:W44,W46:W51)","v":0},null,"Sa",{"$f":"SUM(Z4:Z9,Z11:Z16,Z18:Z23,Z25:Z30,Z32:Z36,Z37,Z39:Z44,Z46:Z51)","v":10},{"$f":"SUM(AA4:AA9,AA11:AA16,AA18:AA23,AA25:AA30,AA32:AA36,AA37,AA39:AA44,AA46:AA51)","v":0},null,"So",{"$f":"SUM(AD4:AD9,AD11:AD16,AD18:AD23,AD25:AD30,AD32:AD36,AD37,AD39:AD44,AD46:AD51)","v":0},{"$f":"SUM(AE4:AE9,AE11:AE16,AE18:AE23,AE25:AE30,AE32:AE36,AE37,AE39:AE44,AE46:AE51)","v":0},null,{"$f":"AG3+AG10+AG17+AG24+AG31+AG38+AG45","v":10},{"$f":"AH3+AH10+AH17+AH24+AH31+AH38+AH45","v":0}]
[]
[]
[]
[]
[]
[]
[]
["X"]
[]
[]
[1]
[2]
[3]
[]
[]
[]
["MM"]
["V"]
["M"]
["N"]
["A"]
[5]
[10]
[20]
[30]
[45]
[60]
[75]
[90]
[120]
[150]
[180]

{"sheet":"Bereiche & Aufgaben","index":1,"n_rows":9,"n_cols":9,"rows_kept":9,"cut":false,"hidden":false,"merged":[[1,1,2,1]]}
[]
[null,"Zurück","Bereich 1","Bereich 2","Bereich 3","Bereich 4","Bereich 5","Bereich 6","Bereich 7"]
[null,null,"Mission","Mann-Sein","Gesundheit","Soziales","Fähigkeiten","Spirituelles","Ordnung / Ablage / ToDo"]
[null,"Aufgabe 1","Strategie","Männer-Buch","Krafttraining","Freund anrufen","Speed-Reading","Meditation","Einkaufen"]
[null,"Aufgabe 2","Prozessarbeit","Men-Encounter","Ausdauertraining","Xhemile","Gefühle trainieren","Buch lesen","Ordnung & Ablage"]
[null,"Aufgabe 3","Analyse","Meditation","Faszientraining","Kinder","Genie-Master-Kurs","Binaurale Beats","Einkommensteuer"]
[null,"Aufgabe 4","Tradingwissen","Platzhalter","Goldeman",null,null,null,"Test"]
[null,"Aufgabe 5"]
[null,"Aufgabe 6"]

{"sheet":"Kummulierte DT-Tabelle","index":2,"n_rows":5,"n_cols":46,"rows_kept":5,"cut":false,"hidden":false,"merged":[]}
["Wochendatum",{"$f":"CONCATENATE(Rhythmustabelle!A3,\"-\",\"SOLL\")","v":"Mission-SOLL"},{"$f":"CONCATENATE(Rhythmustabelle!A3,\"-\",\"Ist\")","v":"Mission-Ist"},{"$f":"CONCATENATE(Rhythmustabelle!A3,\"-\",\"Diff\")","v":"Mission-Diff"},{"$f":"CONCATENATE(Rhythmustabelle!A10,\"-\",\"SOLL\")","v":"Mann-Sein-SOLL"},{"$f":"CONCATENATE(Rhythmustabelle!A10,\"-\",\"Ist\")","v":"Mann-Sein-Ist"},{"$f":"CONCATENATE(Rhythmustabelle!A10,\"-\",\"Diff\")","v":"Mann-Sein-Diff"},{"$f":"CONCATENATE(Rhythmustabelle!A17,\"-\",\"SOLL\")","v":"Gesundheit-SOLL"},{"$f":"CONCATENATE(Rhythmustabelle!A17,\"-\",\"Ist\")","v":"Gesundheit-Ist"},{"$f":"CONCATENATE(Rhythmustabelle!A17,\"-\",\"Diff\")","v":"Gesundheit-Diff"},{"$f":"CONCATENATE(Rhythmustabelle!A24,\"-\",\"SOLL\")","v":"Soziales-SOLL"},{"$f":"CONCATENATE(Rhythmustabelle!A24,\"-\",\"Ist\")","v":"Soziales-Ist"},{"$f":"CONCATENATE(Rhythmustabelle!A24,\"-\",\"Diff\")","v":"Soziales-Diff"},{"$f":"CONCATENATE(Rhythmustabelle!A31,\"-\",\"SOLL\")","v":"Fähigkeiten-SOLL"},{"$f":"CONCATENATE(Rhythmustabelle!A31,\"-\",\"Ist\")","v":"Fähigkeiten-Ist"},{"$f":"CONCATENATE(Rhythmustabelle!A31,\"-\",\"Diff\")","v":"Fähigkeiten-Diff"},{"$f":"CONCATENATE(Rhythmustabelle!A38,\"-\",\"SOLL\")","v":"Spirituelles-SOLL"},{"$f":"CONCATENATE(Rhythmustabelle!A38,\"-\",\"Ist\")","v":"Spirituelles-Ist"},{"$f":"CONCATENATE(Rhythmustabelle!A38,\"-\",\"Diff\")","v":"Spirituelles-Diff"},{"$f":"CONCATENATE(Rhythmustabelle!A45,\"-\",\"SOLL\")","v":"Ordnung / Ablage / ToDo-SOLL"},{"$f":"CONCATENATE(Rhythmustabelle!A45,\"-\",\"Ist\")","v":"Ordnung / Ablage / ToDo-Ist"},{"$f":"CONCATENATE(Rhythmustabelle!A45,\"-\",\"Diff\")","v":"Ordnung / Ablage / ToDo-Diff"},{"$f":"CONCATENATE(Rhythmustabelle!E53,\"-\",Rhythmustabelle!$E$3)","v":"Mo-Soll"},{"$f":"CONCATENATE(Rhythmustabelle!E53,\"-\",Rhythmustabelle!$G$3)","v":"Mo-Ist"},{"$f":"CONCATENATE(Rhythmustabelle!E53,\"-\",\"Diff\")","v":"Mo-Diff"},{"$f":"CONCATENATE(Rhythmustabelle!I53,\"-\",Rhythmustabelle!$E$3)","v":"Di-Soll"},{"$f":"CONCATENATE(Rhythmustabelle!I53,\"-\",Rhythmustabelle!$G$3)","v":"Di-Ist"},{"$f":"CONCATENATE(Rhythmustabelle!I53,\"-\",\"Diff\")","v":"Di-Diff"},{"$f":"CONCATENATE(Rhythmustabelle!M53,\"-\",Rhythmustabelle!$E$3)","v":"Mi-Soll"},{"$f":"CONCATENATE(Rhythmustabelle!M53,\"-\",Rhythmustabelle!$G$3)","v":"Mi-Ist"},{"$f":"CONCATENATE(Rhythmustabelle!M53,\"-\",\"Diff\")","v":"Mi-Diff"},{"$f":"CONCATENATE(Rhythmustabelle!Q53,\"-\",Rhythmustabelle!$E$3)","v":"Do-Soll"},{"$f":"CONCATENATE(Rhythmustabelle!Q53,\"-\",Rhythmustabelle!$G$3)","v":"Do-Ist"},{"$f":"CONCATENATE(Rhythmustabelle!Q53,\"-\",\"Diff\")","v":"Do-Diff"},{"$f":"CONCATENATE(Rhythmustabelle!U53,\"-\",Rhythmustabelle!$E$3)","v":"Fr-Soll"},{"$f":"CONCATENATE(Rhythmustabelle!U53,\"-\",Rhythmustabelle!$G$3)","v":"Fr-Ist"},{"$f":"CONCATENATE(Rhythmustabelle!U53,\"-\",\"Diff\")","v":"Fr-Diff"},{"$f":"CONCATENATE(Rhythmustabelle!Y53,\"-\",Rhythmustabelle!$E$3)","v":"Sa-Soll"},{"$f":"CONCATENATE(Rhythmustabelle!Y53,\"-\",Rhythmustabelle!$G$3)","v":"Sa-Ist"},{"$f":"CONCATENATE(Rhythmustabelle!Y53,\"-\",\"Diff\")","v":"Sa-Diff"},{"$f":"CONCATENATE(Rhythmustabelle!AC53,\"-\",Rhythmustabelle!$E$3)","v":"So-Soll"},{"$f":"CONCATENATE(Rhythmustabelle!AC53,\"-\",Rhythmustabelle!$G$3)","v":"So-Ist"},{"$f":"CONCATENATE(Rhythmustabelle!AC53,\"-\",\"Diff\")","v":"So-Diff"},"Wo-Soll","Wo-Ist","Wo-Differenz"]
["2025-04-01",950,210,-740,490,177,-313,-340,228,568,-340,300,640,-340,225,565,-250,210,460,420,360,-60,945,10,-935,15,0,-15,230,630,400,-180,0,180,-195,460,655,-335,250,585,110,360,250]
["2025-03-24",950,210,-740,490,177,-313,-340,228,568,-340,300,640,-340,225,565,-250,210,460,420,360,-60,945,10,-935,15,0,-15,230,630,400,-180,0,180,-195,460,655,-335,250,585,110,360,250]
["2025-03-12",0,10,10,0,0,0,0,0,0,0,0,0,0,0,0,0,0,0,0,0,0,0,0,0,0,0,0,0,0,0,0,0,0,0,0,0,0,10,10,0,0,0]
["2025-03-24",10,30,20,0,0,0,0,0,0,0,0,0,0,0,0,0,0,0,0,0,0,0,0,0,0,0,0,0,0,0,0,0,0,0,0,0,10,30,20,0,0,0]

{"sheet":"Tabelle3","index":3,"n_rows":2,"n_cols":43,"rows_kept":2,"cut":false,"hidden":false,"merged":[]}
["Wochendatum",{"$f":"CONCATENATE(Rhythmustabelle!A3,\"-\",\"SOLL\")","v":"Mission-SOLL"},{"$f":"CONCATENATE(Rhythmustabelle!A3,\"-\",\"Ist\")","v":"Mission-Ist"},{"$f":"CONCATENATE(Rhythmustabelle!A3,\"-\",\"Diff\")","v":"Mission-Diff"},{"$f":"CONCATENATE(Rhythmustabelle!A10,\"-\",\"SOLL\")","v":"Mann-Sein-SOLL"},{"$f":"CONCATENATE(Rhythmustabelle!A10,\"-\",\"Ist\")","v":"Mann-Sein-Ist"},{"$f":"CONCATENATE(Rhythmustabelle!A10,\"-\",\"Diff\")","v":"Mann-Sein-Diff"},{"$f":"CONCATENATE(Rhythmustabelle!A17,\"-\",\"SOLL\")","v":"Gesundheit-SOLL"},{"$f":"CONCATENATE(Rhythmustabelle!A17,\"-\",\"Ist\")","v":"Gesundheit-Ist"},{"$f":"CONCATENATE(Rhythmustabelle!A17,\"-\",\"Diff\")","v":"Gesundheit-Diff"},{"$f":"CONCATENATE(Rhythmustabelle!A24,\"-\",\"SOLL\")","v":"Soziales-SOLL"},{"$f":"CONCATENATE(Rhythmustabelle!A24,\"-\",\"Ist\")","v":"Soziales-Ist"},{"$f":"CONCATENATE(Rhythmustabelle!A24,\"-\",\"Diff\")","v":"Soziales-Diff"},{"$f":"CONCATENATE(Rhythmustabelle!A31,\"-\",\"SOLL\")","v":"Fähigkeiten-SOLL"},{"$f":"CONCATENATE(Rhythmustabelle!A31,\"-\",\"Ist\")","v":"Fähigkeiten-Ist"},{"$f":"CONCATENATE(Rhythmustabelle!A31,\"-\",\"Diff\")","v":"Fähigkeiten-Diff"},{"$f":"CONCATENATE(Rhythmustabelle!A38,\"-\",\"SOLL\")","v":"Spirituelles-SOLL"},{"$f":"CONCATENATE(Rhythmustabelle!A38,\"-\",\"Ist\")","v":"Spirituelles-Ist"},{"$f":"CONCATENATE(Rhythmustabelle!A38,\"-\",\"Diff\")","v":"Spirituelles-Diff"},{"$f":"CONCATENATE(Rhythmustabelle!A45,\"-\",\"SOLL\")","v":"Ordnung / Ablage / ToDo-SOLL"},{"$f":"CONCATENATE(Rhythmustabelle!A45,\"-\",\"Ist\")","v":"Ordnung / Ablage / ToDo-Ist"},{"$f":"CONCATENATE(Rhythmustabelle!A45,\"-\",\"Diff\")","v":"Ordnung / Ablage / ToDo-Diff"},{"$f":"CONCATENATE(Rhythmustabelle!E53,\"-\",Rhythmustabelle!$E$3)","v":"Mo-Soll"},{"$f":"CONCATENATE(Rhythmustabelle!E53,\"-\",Rhythmustabelle!$G$3)","v":"Mo-Ist"},{"$f":"CONCATENATE(Rhythmustabelle!E53,\"-\",\"Diff\")","v":"Mo-Diff"},{"$f":"CONCATENATE(Rhythmustabelle!I53,\"-\",Rhythmustabelle!$E$3)","v":"Di-Soll"},{"$f":"CONCATENATE(Rhythmustabelle!I53,\"-\",Rhythmustabelle!$G$3)","v":"Di-Ist"},{"$f":"CONCATENATE(Rhythmustabelle!I53,\"-\",\"Diff\")","v":"Di-Diff"},{"$f":"CONCATENATE(Rhythmustabelle!M53,\"-\",Rhythmustabelle!$E$3)","v":"Mi-Soll"},{"$f":"CONCATENATE(Rhythmustabelle!M53,\"-\",Rhythmustabelle!$G$3)","v":"Mi-Ist"},{"$f":"CONCATENATE(Rhythmustabelle!M53,\"-\",\"Diff\")","v":"Mi-Diff"},{"$f":"CONCATENATE(Rhythmustabelle!Q53,\"-\",Rhythmustabelle!$E$3)","v":"Do-Soll"},{"$f":"CONCATENATE(Rhythmustabelle!Q53,\"-\",Rhythmustabelle!$G$3)","v":"Do-Ist"},{"$f":"CONCATENATE(Rhythmustabelle!Q53,\"-\",\"Diff\")","v":"Do-Diff"},{"$f":"CONCATENATE(Rhythmustabelle!U53,\"-\",Rhythmustabelle!$E$3)","v":"Fr-Soll"},{"$f":"CONCATENATE(Rhythmustabelle!U53,\"-\",Rhythmustabelle!$G$3)","v":"Fr-Ist"},{"$f":"CONCATENATE(Rhythmustabelle!U53,\"-\",\"Diff\")","v":"Fr-Diff"},{"$f":"CONCATENATE(Rhythmustabelle!Y53,\"-\",Rhythmustabelle!$E$3)","v":"Sa-Soll"},{"$f":"CONCATENATE(Rhythmustabelle!Y53,\"-\",Rhythmustabelle!$G$3)","v":"Sa-Ist"},{"$f":"CONCATENATE(Rhythmustabelle!Y53,\"-\",\"Diff\")","v":"Sa-Diff"},{"$f":"CONCATENATE(Rhythmustabelle!AC53,\"-\",Rhythmustabelle!$E$3)","v":"So-Soll"},{"$f":"CONCATENATE(Rhythmustabelle!AC53,\"-\",Rhythmustabelle!$G$3)","v":"So-Ist"},{"$f":"CONCATENATE(Rhythmustabelle!AC53,\"-\",\"Diff\")","v":"So-Diff"}]
[{"$f":"Rhythmustabelle!AJ3","v":"2025-03-24"},{"$f":"Rhythmustabelle!AG3","v":10},{"$f":"Rhythmustabelle!AH3","v":0},{"$f":"C2-B2","v":-10},{"$f":"Rhythmustabelle!AG10","v":0},{"$f":"Rhythmustabelle!AH10","v":0},{"$f":"F2-E2","v":0},{"$f":"Rhythmustabelle!AG17","v":0},{"$f":"Rhythmustabelle!AH17","v":0},{"$f":"I2-H2","v":0},{"$f":"Rhythmustabelle!AG24","v":0},{"$f":"Rhythmustabelle!AH24","v":0},{"$f":"L2-K2","v":0},{"$f":"Rhythmustabelle!AG31","v":0},{"$f":"Rhythmustabelle!AH31","v":0},{"$f":"O2-N2","v":0},{"$f":"Rhythmustabelle!AG38","v":0},{"$f":"Rhythmustabelle!AH38","v":0},{"$f":"R2-Q2","v":0},{"$f":"Rhythmustabelle!AG45","v":0},{"$f":"Rhythmustabelle!AH45","v":0},{"$f":"U2-T2","v":0},{"$f":"Rhythmustabelle!F53","v":0},{"$f":"Rhythmustabelle!G53","v":0},{"$f":"X2-W2","v":0},{"$f":"Rhythmustabelle!J53","v":0},{"$f":"Rhythmustabelle!K53","v":0},{"$f":"AA2-Z2","v":0},{"$f":"Rhythmustabelle!N53","v":0},{"$f":"Rhythmustabelle!O53","v":0},{"$f":"AD2-AC2","v":0},{"$f":"Rhythmustabelle!R53","v":0},{"$f":"Rhythmustabelle!S53","v":0},{"$f":"AG2-AF2","v":0},{"$f":"Rhythmustabelle!V53","v":0},{"$f":"Rhythmustabelle!W53","v":0},{"$f":"AJ2-AI2","v":0},{"$f":"Rhythmustabelle!Z53","v":10},{"$f":"Rhythmustabelle!AA53","v":0},{"$f":"AM2-AL2","v":-10},{"$f":"Rhythmustabelle!AD53","v":0},{"$f":"Rhythmustabelle!AE53","v":0},{"$f":"AP2-AO2","v":0}]